bitfinex-derivatives/quotes_ETHF0:USTF0_20251107
["timestamp","ask_amount","ask_price","bid_price","bid_amount"]
[1762545284041,0.1454,3440.5,3440.4,0.47116]
[1762545285234,0.3716,3440.5,3440.4,0.47116]
[1762545286345,0.1381,3440.0,3439.9,0.47481646]
[1762545286536,0.3643,3440.0,3439.9,0.47481646]
[1762545286741,0.83552,3440.0,3439.9,0.00358646]
[1762545287542,0.70046,3439.7,3439.6,0.00436135]
[1762545287737,0.2292,3439.4,3439.3,0.47131]
[1762545287943,0.1469,3439.5,3438.3,0.22683105]
[1762545287944,0.1469,3439.5,3439.4,0.4713]
[1762545288538,0.14961415,3439.5,3439.4,0.47348879]
[1762545289438,0.00271415,3439.5,3439.4,0.47348879]
[1762545296451,0.00436135,3439.8,3439.7,0.47126]
[1762545297449,0.1454,3440.5,3440.4,0.47116]
[1762545297746,0.1454,3441.0,3440.9,0.47109]
[1762545297941,0.69459428,3441.8,3441.4,0.47103]
[1762545298143,0.3855,3441.5,3441.4,0.47103]
[1762545298542,0.1469,3441.5,3441.4,0.47103]
[1762545298752,4.195e-05,3441.5,3441.1,2.05989115]
[1762545298951,4.195e-05,3441.5,3441.4,0.47103]
[1762545301549,4.195e-05,3441.5,3441.4,8.47103]
[1762545301854,3.3e-06,3441.8,3441.7,0.47098]
[1762545303056,0.00226076,3441.8,3441.7,0.47098]
[1762545304262,0.1376,3442.8,3442.1,0.47093]
[1762545304957,0.1376,3442.8,3442.7,0.47085]
[1762545305355,0.37838744,3442.8,3442.7,0.47394505]
[1762545306159,0.13978744,3442.8,3442.7,0.47394505]
[1762545309154,0.00218744,3442.8,3442.7,0.47394505]
[1762545309660,0.1376,3443.4,3443.3,0.47077]
[1762545310656,0.14091663,3443.4,3443.3,0.47077]
[1762545310862,0.2386,3443.3,3443.2,0.47078]
[1762545311461,0.14091663,3443.4,3443.3,0.47077]
[1762545312074,0.37951663,3443.4,3443.3,0.47077]
[1762545312369,0.85026663,3443.4,3443.3,0.47077]
[1762545312873,0.70937,3443.3,3443.2,0.47078]
[1762545313071,0.70939,3443.1,3443.0,0.47517135]
[1762545314369,0.70939,3443.1,3443.0,0.00436135]
[1762545314677,0.70939,3443.1,3443.0,0.47517135]
[1762545314974,0.70939,3443.1,3443.0,0.00436135]
[1762545315879,0.70939,3443.1,3443.0,0.47517135]
[1762545316877,0.14091663,3443.4,3443.2,0.47077]
[1762545317278,0.47077,3443.3,3443.2,0.47077]
[1762545317674,0.2386,3443.3,3443.2,0.47077]
[1762545318381,0.70937,3443.3,3443.2,0.47077]
[1762545319084,0.47079,3443.2,3443.0,0.00436135]
[1762545319268,0.70939,3443.2,3443.1,0.47079]
[1762545319577,0.70939,3443.1,3443.0,0.00436135]
[1762545319777,0.3762,3442.5,3442.4,0.47088]
[1762545320776,0.1376,3442.5,3442.4,0.47363779]
[1762545322981,0.3762,3442.5,3442.4,0.00275779]
[1762545323576,0.84708,3442.5,3442.4,0.00275779]
[1762545323979,0.2386,3442.2,3440.1,2.0555298]
[1762545324282,0.1376,3441.0,3439.5,2.0555298]
[1762545324583,0.1376,3440.5,3439.5,0.23546354]
[1762545324781,0.2386,3440.4,3440.3,0.47117]
[1762545324982,0.0037613,3440.4,3440.3,0.47376149]
[1762545325879,0.1376,3441.0,3440.3,0.00259149]
[1762545326584,0.3762,3441.0,3440.9,0.47109]
[1762545326991,0.37895795,3441.0,3440.9,0.47109]
[1762545327589,0.14035795,3441.0,3440.9,0.47109]
[1762545328678,0.00275795,3441.0,3440.9,0.47109]
[1762545328877,0.13925795,3441.0,3440.9,0.47109]
[1762545330085,0.36915795,3441.0,3440.9,0.47109]
[1762545331084,0.13925795,3441.0,3440.9,0.47109]
[1762545331686,0.2299,3440.7,3440.6,4.641]
[1762545331879,0.1365,3440.4,3440.3,0.47377149]
[1762545333181,0.3664,3440.4,3440.3,0.47377149]
[1762545333789,0.3664,3440.4,3440.3,0.00259149]
[1762545333790,0.83756,3440.4,3440.3,0.00259149]
[1762545334080,0.83756,3440.4,3440.3,0.47377149]
[1762545334277,0.83756,3440.4,3440.3,0.00259149]
[1762545334486,0.7011,3440.1,3440.0,0.00436135]
[1762545334689,0.2299,3439.9,3439.8,0.47124]
[1762545334888,0.1365,3439.2,3439.1,0.47134]
[1762545335076,0.3664,3439.2,3439.1,0.47134]
[1762545335478,0.2299,3439.1,3439.0,0.47135]
[1762545335682,0.1365,3439.2,3439.1,0.47134]
[1762545336391,0.1365,3439.8,3439.7,0.47126]
[1762545337095,0.1365,3439.2,3439.0,0.00253434]
[1762545337393,0.1365,3439.2,3439.1,0.47134]
[1762545338689,0.3664,3439.2,3439.1,0.47134]
[1762545339091,0.1365,3439.2,3439.1,0.47134]
[1762545340393,0.3664,3439.2,3439.1,0.47134]
[1762545340795,0.1365,3439.2,3439.1,0.47134]
[1762545341095,0.366,3439.2,3439.1,0.47134]
[1762545341290,0.2295,3439.1,3439.0,0.00253434]
[1762545341597,0.2295,3439.1,3439.0,0.47388434]
[1762545341790,0.1365,3439.2,3439.0,0.00253434]
[1762545343291,0.00436135,3439.4,3439.0,0.00253434]
[1762545343791,0.1376,3439.2,3439.0,0.00253434]
[1762545344187,0.2295,3439.1,3439.0,0.00253434]
[1762545345098,0.1376,3439.2,3439.0,0.00253434]
[1762545345498,0.2295,3439.1,3439.0,0.00253434]
[1762545345697,0.1376,3439.2,3439.0,0.00253434]
[1762545345891,0.2295,3439.1,3439.0,0.00253434]
[1762545347602,0.2295,3439.1,3439.0,0.47388434]
[1762545348894,0.2295,3439.1,3439.0,0.00253434]
[1762545349093,0.2295,3439.0,3438.9,0.47137]
[1762545349999,0.2295,3439.0,3438.9,0.47366016]
[1762545350398,0.1376,3439.2,3439.1,0.47134]
[1762545350704,0.3671,3439.2,3439.1,0.47134]
[1762545350999,0.2295,3439.0,3438.9,0.47366016]
[1762545351201,0.2295,3439.0,3438.7,0.00436135]
[1762545351396,0.2295,3438.2,3438.1,8.72548]
[1762545352292,0.23286983,3438.2,3438.1,0.47442911]
[1762545352498,0.70432983,3438.2,3438.1,0.00294911]
[1762545352703,0.23286983,3438.2,3438.1,0.47442911]
[1762545353003,0.70432983,3438.2,3438.1,0.00294911]
[1762545353303,0.23286983,3438.2,3438.1,0.00294911]
[1762545353501,0.23286983,3438.2,3438.1,0.47442911]
[1762545354501,0.23286983,3438.2,3438.1,0.00294911]
[1762545354502,0.70432983,3438.2,3438.1,0.00294911]
[1762545354996,0.70432983,3438.2,3438.1,0.47442911]
[1762545355502,0.70432983,3438.2,3438.1,0.00294911]
[1762545355904,0.23286983,3438.2,3438.1,0.47442911]
[1762545356299,0.70432983,3438.2,3438.1,0.00294911]
[1762545356495,0.70101,3437.9,3437.8,0.00436135]
[1762545356700,0.2295,3437.9,3437.8,0.47588135]
[1762545357608,0.1387,3438.0,3437.9,0.47151]
[1762545358109,0.3857,3438.0,3437.9,0.47151]
[1762545360398,0.3857,3438.0,3437.8,0.00732251]
[1762545360607,0.71851,3437.9,3437.8,0.47883251]
[1762545360918,0.247,3437.8,3437.7,0.47153]
[1762545362009,0.71852,3437.8,3437.7,1.662e-05]
[1762545362209,0.85726,3437.5,3437.4,0.00436135]
[1762545362513,0.95800693,3437.5,3437.4,0.00436135]
[1762545362809,0.95800693,3437.5,3437.4,0.47593135]
[1762545363202,0.48644693,3437.5,3437.4,0.47878298]
[1762545363406,0.1387,3437.5,3437.4,0.47878298]
[1762545364203,0.10076667,3437.9,3437.8,0.47152]
[1762545364409,0.00436135,3438.1,3438.0,0.47149]
[1762545365714,0.00336983,3438.2,3438.1,0.47148]
[1762545366005,0.247,3439.4,3437.4,10.48121298]
[1762545366210,0.247,3439.2,3439.1,0.47134]
[1762545366613,0.94230728,3439.2,3439.1,0.47134]
[1762545366811,0.24972919,3439.2,3439.1,0.47134]
[1762545367012,0.24972919,3439.2,3439.0,0.47135]
[1762545367013,0.247,3439.1,3439.0,0.47135]
[1762545367204,0.247,3438.9,3437.4,10.48121298]
[1762545367607,0.94238399,3438.8,3438.7,0.4714]
[1762545367804,0.94238399,3438.8,3437.4,10.48121298]
[1762545368015,0.3857,3438.6,3438.5,0.47142]
[1762545368514,0.1387,3438.6,3438.5,0.47142]
[1762545369321,0.00272919,3439.2,3439.1,0.47134]
[1762545369614,0.94566519,3439.2,3439.1,0.47134]
[1762545369915,0.247,3439.1,3439.0,0.47135]
[1762545370113,0.942936,3439.1,3439.0,0.47135]
[1762545371313,0.00272919,3439.2,3439.1,0.47134]
[1762545371603,0.24972919,3439.2,3439.1,0.47134]
[1762545371805,0.69885521,3439.2,3439.1,0.47134]
[1762545372209,0.94585521,3439.2,3439.1,0.47134]
[1762545372404,0.24972919,3439.2,3439.1,0.47134]
[1762545372813,0.247,3439.0,3438.9,0.47136]
[1762545374310,0.247,3439.0,3437.4,12.53674278]
[1762545374518,0.247,3439.0,3438.9,0.47137]
[1762545374715,0.247,3438.9,3438.8,0.47138]
[1762545376018,0.1387,3439.0,3438.9,0.47137]
[1762545376921,0.00272919,3439.2,3439.1,0.47134]
[1762545385326,0.00272919,3439.2,3438.0,2.0555298]
[1762545385626,0.72105919,3439.2,3439.1,0.47134]
[1762545385830,0.24972919,3439.2,3439.1,0.47134]
[1762545386021,0.1387,3439.0,3438.9,0.47137]
[1762545387333,0.3857,3439.0,3438.9,0.47137]
[1762545387531,0.2289,3438.8,3438.7,0.47138]
[1762545387732,0.70028,3438.8,3438.7,0.47138]
[1762545387933,0.143,3438.5,3438.4,0.47144]
[1762545388133,0.3719,3438.5,3438.4,0.47144]
[1762545389034,0.143,3438.5,3438.4,0.47144]
[1762545390333,0.1387,3439.0,3438.9,0.47137]
[1762545390733,0.3676,3439.0,3438.9,0.47137]
[1762545391928,0.1387,3439.0,3438.9,0.47137]
[1762545393038,0.00272919,3439.2,3439.1,0.47134]
[1762545393844,0.00436135,3439.5,3439.4,0.4713]
[1762545394037,0.14736135,3439.5,3439.4,0.4713]
[1762545394839,0.15003006,3439.5,3439.4,0.4713]
[1762545395432,0.00703006,3439.5,3439.4,0.4713]
[1762545396339,0.00703006,3439.5,3438.9,2.0555298]
[1762545396340,0.1387,3440.0,3439.9,0.47123]
[1762545396534,0.143,3440.5,3440.4,0.47116]
[1762545396736,0.3719,3440.5,3440.4,0.47116]
[1762545397339,0.14629339,3440.5,3440.4,0.47486849]
[1762545397550,1.04276392,3441.4,3440.4,8.75670849]
[1762545397737,0.143,3441.5,3441.3,0.47104]
[1762545398236,0.143,3442.0,3441.9,0.47096]
[1762545398542,0.14526703,3442.0,3441.9,0.47096]
[1762545398945,0.00226703,3442.0,3441.9,0.47096]
[1762545401842,0.143,3443.0,3442.4,0.47089]
[1762545402747,0.3703,3442.5,3442.4,0.47089]
[1762545403046,0.37400199,3442.5,3442.4,0.47089]
[1762545403246,0.2273,3442.4,3442.1,0.00436135]
[1762545403544,0.2273,3442.2,3442.1,0.00436135]
[1762545405640,0.14670199,3442.5,3442.3,0.47089]
[1762545406046,0.2273,3442.2,3442.1,0.00436135]
[1762545406247,0.69822,3442.2,3442.1,0.00436135]
[1762545409141,0.2273,3442.1,3442.0,0.47094]
[1762545409347,0.69823,3442.1,3442.0,0.47094]
[1762545409544,0.47097,3441.9,3440.4,0.00370849]
[1762545409742,0.2273,3441.8,3441.7,0.47098]
[1762545410649,0.69827,3441.8,3441.7,0.47098]
[1762545411449,0.2273,3441.8,3441.7,0.47098]
[1762545413649,0.1375,3442.0,3441.9,0.47096]
[1762545413849,0.3648,3442.0,3441.9,0.47096]
[1762545414354,0.83574,3442.0,3441.9,0.47096]
[1762545416649,0.1375,3442.0,3441.9,0.47096]
[1762545416850,0.00436135,3442.1,3442.0,0.47094]
[1762545417052,0.14670199,3442.5,3442.4,0.47089]
[1762545417248,0.00370199,3442.5,3442.4,0.47089]
[1762545417455,0.14980199,3442.5,3442.4,0.47089]
[1762545417750,0.18968793,3442.5,3442.4,0.47089]
[1762545420360,0.2485,3442.3,3442.2,0.47091]
[1762545420751,0.1461,3441.5,3441.4,0.00436135]
[1762545420957,0.1461,3441.5,3441.4,0.47539135]
[1762545421661,0.18598594,3441.5,3441.4,0.47539135]
[1762545423858,0.43448594,3441.5,3441.4,0.47539135]
[1762545424164,0.43448594,3441.5,3441.4,0.00436135]
[1762545424556,0.90549594,3441.5,3441.4,0.00436135]
[1762545424755,0.2485,3441.3,3441.2,0.47105]
[1762545425561,0.32608166,3441.3,3441.2,0.47105]
[1762545426566,0.07758166,3441.3,3441.2,0.47105]
[1762545427961,0.32608166,3441.3,3441.2,0.47105]
[1762545429369,0.07758166,3441.3,3441.2,0.47105]
[1762545430770,0.32608166,3441.3,3441.2,0.47105]
[1762545430968,0.07758166,3441.3,3441.2,0.47105]
[1762545431473,0.32608166,3441.3,3441.2,0.47105]
[1762545432174,0.07758166,3441.3,3441.2,0.47105]
[1762545433970,0.1461,3441.5,3441.4,0.35355875]
[1762545434369,0.00436135,3441.6,3440.9,0.00436135]
[1762545434370,0.00436135,3441.6,3441.5,0.47101]
[1762545439980,0.25286135,3441.6,3441.5,0.47101]
[1762545442682,0.72386135,3441.6,3441.5,0.47101]
[1762545443185,0.72387135,3441.6,3441.5,0.47101]
[1762545443685,0.25286135,3441.6,3441.5,0.47101]
[1762545444679,0.3946,3441.0,3440.9,0.47545135]
[1762545445477,0.1461,3441.5,3440.9,0.23476135]
[1762545445683,0.3946,3441.5,3441.4,0.47103]
[1762545446182,0.43448594,3441.5,3441.4,0.47103]
[1762545446585,0.90549594,3441.5,3441.4,0.47103]
[1762545446787,0.69986,3441.2,3441.1,0.47107]
[1762545447081,0.2288,3441.1,3441.0,0.47107]
[1762545447284,0.26868594,3441.1,3441.0,0.47107]
[1762545447985,0.73975594,3441.1,3441.0,0.47107]
[1762545449685,0.26868594,3441.1,3441.0,0.47107]
[1762545450687,0.03988594,3441.1,3441.0,0.47107]
[1762545450984,0.03988594,3441.1,3441.0,0.69637]
[1762545453689,0.91269797,3441.4,3441.3,0.39126812]
[1762545453885,0.68389797,3441.4,3441.3,0.61656812]
[1762545454086,0.83007996,3441.5,3441.4,0.47103]
[1762545454392,1.52988996,3441.5,3441.4,0.47103]
[1762545454589,0.3662,3441.0,3440.9,0.00436135]
[1762545454785,0.83735,3440.5,3440.4,0.00370849]
[1762545455090,0.3662,3440.5,3440.4,0.00370849]
[1762545455290,0.83735,3440.5,3440.4,0.00370849]
[1762545455482,0.47122,3440.0,3439.4,2.0555298]
[1762545455683,0.1374,3440.0,3439.2,2.0555298]
[1762545455893,0.3662,3440.0,3439.9,0.47123]
[1762545456390,0.60862,3440.0,3439.9,0.47123]
[1762545456578,0.84092831,3440.0,3439.9,0.47432108]
[1762545456979,0.36970831,3440.0,3439.9,0.47432108]
[1762545457884,0.00350831,3440.0,3439.9,0.69962108]
[1762545459179,0.14090831,3440.0,3439.9,0.69962108]
[1762545459594,0.36970831,3440.0,3439.9,0.47432108]
[1762545459788,0.14090831,3440.0,3439.9,0.47432108]
[1762545459989,0.36970831,3440.0,3439.9,0.47432108]
[1762545460895,0.00350831,3440.0,3439.9,0.69962108]
[1762545461090,0.41300913,3440.0,3439.9,0.47432108]
[1762545462392,0.1378,3439.5,3439.3,0.00436135]
[1762545462695,0.1378,3439.5,3439.4,0.7123]
[1762545463093,0.17770082,3439.5,3439.4,0.7123]
[1762545463296,0.17770082,3439.5,3439.4,0.71595389]
[1762545464095,0.40950082,3439.5,3439.4,0.47495389]
[1762545465292,0.17770082,3439.5,3439.4,0.47495389]
[1762545465592,0.40950082,3439.5,3439.4,0.47495389]
[1762545466388,0.03990082,3439.5,3439.4,0.71595389]
[1762545468294,0.00436135,3439.7,3439.6,0.47127]
[1762545468494,0.00436135,3439.7,3439.6,0.63248324]
[1762545473599,1.35e-06,3439.7,3439.6,0.63248324]
[1762545474303,0.68889856,3441.2,3440.9,0.47109]
[1762545474503,0.1378,3441.5,3440.9,0.71209]
[1762545474701,0.3696,3441.5,3441.4,0.47103]
[1762545474905,0.84061,3441.5,3440.5,0.1121]
[1762545475106,0.68903154,3441.4,3440.5,0.1121]
[1762545475307,0.00436135,3441.3,3440.6,0.00436135]
[1762545476104,0.23616135,3441.3,3441.2,0.47105]
[1762545478511,0.27604729,3441.3,3441.2,0.47105]
[1762545480809,0.04424729,3441.3,3441.2,0.70495]
[1762545482718,1.04276392,3442.9,3442.4,0.47089]
[1762545483022,2.21109742,3443.5,3442.4,0.47089]
[1762545483023,0.47086,3442.6,3442.4,0.47089]
[1762545483314,0.47085,3442.7,3442.4,0.47089]
[1762545483520,0.3824,3442.5,3442.4,0.47089]
[1762545483723,0.3824,3442.5,3442.4,0.47415027]
[1762545483724,0.38486679,3442.5,3442.4,0.47415027]
[1762545483913,0.42360504,3442.5,3442.4,0.47415027]
[1762545484116,0.17900504,3442.5,3442.4,0.47415027]
[1762545484318,0.04120504,3442.5,3442.4,0.70805027]
[1762545488118,0.04120504,3442.5,3442.4,0.47415027]
[1762545488316,0.17850504,3442.5,3442.4,0.47415027]
[1762545488522,0.04120504,3442.5,3442.4,0.70805027]
[1762545491424,0.17850504,3442.5,3442.4,0.70805027]
[1762545491919,0.17850504,3442.5,3442.4,0.47415027]
[1762545491920,0.42310504,3442.5,3442.4,0.47415027]
[1762545492120,0.2446,3441.2,3440.6,0.00436135]
[1762545492420,0.2446,3440.8,3440.7,0.47111]
[1762545492628,0.2446,3440.7,3440.6,0.00436135]
[1762545492813,0.71574,3440.6,3439.5,0.1102]
[1762545493124,0.03873825,3440.1,3440.0,0.47122]
[1762545494625,0.24896135,3440.4,3440.3,0.39255581]
[1762545494924,0.1373,3440.0,3439.7,0.00436135]
[1762545495124,0.2446,3439.8,3439.7,0.47562135]
[1762545496724,0.2446,3439.8,3439.7,0.00436135]
[1762545501830,0.13934683,3440.0,3439.8,0.47125]
[1762545502029,0.00204683,3440.0,3439.9,0.2339]
[1762545502330,0.00436135,3440.4,3440.3,0.70508]
[1762545502935,0.24896135,3440.4,3440.3,0.47118]
[1762545503132,0.25178969,3440.4,3440.3,0.47118]
[1762545505825,0.72294969,3440.4,3440.3,0.47118]
[1762545506037,0.2446,3439.8,3439.7,0.47562135]
[1762545507034,0.3846,3440.0,3439.9,0.47123]
[1762545507338,0.3846,3440.0,3439.7,0.00436135]
[1762545507339,0.72564969,3440.4,3440.3,0.47118]
[1762545507532,0.25448969,3440.4,3440.3,0.47118]
[1762545509529,0.00718969,3440.4,3440.3,0.47118]
[1762545510032,0.00718969,3440.4,3440.3,0.71958]
[1762545510233,0.1373,3441.5,3440.0,0.1135]
[1762545510234,0.60831,3441.5,3440.9,0.47109]
[1762545510537,0.47103,3441.4,3440.9,0.47109]
[1762545510734,0.47104,3441.3,3440.9,0.47109]
[1762545510934,0.1373,3441.5,3440.9,0.47109]
[1762545511136,0.179882,3441.0,3440.9,0.47109]
[1762545511639,0.179882,3441.0,3439.7,0.00436135]
[1762545511940,0.71842,3440.8,3440.7,0.4711]
[1762545512237,0.28718594,3440.8,3440.7,0.4711]
[1762545512437,0.75829594,3440.8,3440.7,0.4711]
[1762545512839,0.28718594,3440.8,3440.7,0.4711]
[1762545514141,0.75829594,3440.8,3440.7,0.4711]
[1762545514439,0.28718594,3440.8,3440.7,0.4711]
[1762545515335,0.47119,3440.3,3440.2,0.47118]
[1762545515536,0.71849,3440.3,3440.2,0.47118]
[1762545515940,0.71848,3440.3,3440.2,0.47118]
[1762545516138,0.28718594,3440.3,3440.2,0.47118]
[1762545517440,0.03988594,3440.3,3440.2,0.47118]
[1762545518041,0.28718594,3440.3,3440.2,0.47118]
[1762545519243,0.79825188,3440.3,3440.2,0.47118]
[1762545519546,0.2473,3439.8,3439.7,0.47562135]
[1762545520345,0.3973,3440.0,3439.9,0.39145812]
[1762545520742,0.2473,3439.8,3439.7,0.00436135]
[1762545520941,0.2473,3439.8,3439.7,0.47562135]
[1762545521139,0.15,3440.0,3439.9,0.47123]
[1762545521735,0.3921,3440.0,3439.9,0.47123]
[1762545524142,0.15,3440.0,3439.9,0.69923]
[1762545525453,0.86326,3440.5,3440.4,0.47116]
[1762545525948,1.0840311,3440.5,3440.4,0.47116]
[1762545526347,0.2421,3440.3,3440.2,0.47118]
[1762545526537,0.9340311,3440.4,3440.3,0.47118]
[1762545526741,1.4051911,3440.4,3440.3,0.47118]
[1762545527153,0.9340311,3440.4,3440.3,0.47118]
[1762545527653,0.97391704,3440.4,3440.3,0.47118]
[1762545527849,1.44507704,3440.4,3440.3,0.47118]
[1762545529346,0.71331,3440.3,3440.2,0.47119]
[1762545529540,1.44512704,3440.3,3440.2,0.47119]
[1762545530151,0.73181704,3440.3,3440.2,0.47119]
[1762545530453,0.28198594,3440.3,3440.2,0.47119]
[1762545531353,0.97391704,3440.3,3440.2,0.47119]
[1762545531549,1.44509704,3440.3,3440.2,0.47119]
[1762545532053,0.97391704,3440.3,3440.2,0.47119]
[1762545532354,0.28198594,3440.3,3440.2,0.47119]
[1762545532544,0.97391704,3440.3,3440.2,0.47119]
[1762545532746,1.44509704,3440.3,3440.2,0.47119]
[1762545532955,0.97391704,3440.3,3440.2,0.47119]
[1762545533151,1.44509704,3440.3,3440.2,0.47119]
[1762545533655,1.00146345,3440.3,3440.2,0.47119]
[1762545533847,0.30953235,3440.3,3440.2,0.47119]
[1762545534154,0.75936345,3440.3,3440.2,0.69919]
[1762545534552,0.06743235,3440.3,3440.2,0.69919]
[1762545534749,1.42485998,3441.0,3440.9,0.47109]
[1762545534947,0.83300471,3441.0,3440.9,0.47109]
[1762545535355,1.07510471,3441.0,3440.9,0.47109]
[1762545536650,1.54618471,3441.0,3440.9,0.47109]
[1762545538460,1.07510471,3441.0,3440.9,0.47109]
[1762545539056,0.69570471,3441.0,3440.9,0.69909]
[1762545539250,0.14369606,3441.0,3440.9,0.69909]
[1762545540156,0.00269606,3441.0,3440.9,0.69909]
[1762545540757,0.14369606,3441.0,3440.9,0.69909]
[1762545540950,0.38619606,3441.0,3440.9,0.47109]
[1762545541755,0.00269606,3441.0,3440.9,0.71479]
[1762545543058,0.69241919,3441.6,3441.5,0.71471]
[1762545543257,0.71347,3441.8,3441.7,0.47097]
[1762545543460,0.2425,3441.7,3441.6,0.47099]
[1762545543864,0.93453225,3441.7,3441.6,0.47099]
[1762545544157,0.0027495,3441.7,3441.6,0.7147]
[1762545545259,0.2425,3442.7,3442.6,0.47085]
[1762545546151,0.141,3443.0,3442.9,0.47082]
[1762545546356,1.07701883,3443.0,3442.9,0.47082]
[1762545546558,0.38601827,3443.0,3442.9,0.47082]
[1762545548164,0.85682827,3443.0,3442.9,0.47082]
[1762545548761,0.71335,3442.7,3442.6,0.00276901]
[1762545550159,0.71335,3442.7,3442.6,0.47362901]
[1762545550360,0.2425,3442.7,3442.6,0.47362901]
[1762545550662,0.2425,3442.7,3442.6,0.00276901]
[1762545550862,0.3835,3442.0,3441.9,0.47096]
[1762545551166,0.3835,3442.0,3441.6,0.47099]
[1762545551565,0.3835,3442.0,3440.8,0.22629892]
[1762545551769,0.3835,3442.0,3441.4,0.00641408]
[1762545552166,0.3835,3442.0,3441.9,0.47096]
[1762545552571,0.3835,3442.5,3442.4,0.47089]
[1762545553264,0.2425,3442.3,3441.5,0.1107]
[1762545553568,0.2425,3442.3,3441.4,0.00641408]
[1762545554058,0.47092,3442.2,3441.4,0.00641408]
[1762545554253,0.2425,3442.1,3442.0,0.47093]
[1762545554555,0.71339,3442.4,3442.3,0.4709]
[1762545554862,0.2425,3442.2,3442.1,0.47092]
[1762545555161,0.71342,3442.2,3442.1,0.47092]
[1762545555464,0.2425,3442.2,3442.1,0.47092]
[1762545556465,0.71339,3442.4,3442.3,0.4709]
[1762545556968,0.47092,3442.2,3441.4,0.00641408]
[1762545557561,0.2425,3442.3,3442.2,0.47091]
[1762545557758,0.7134,3442.3,3442.2,0.47091]
[1762545558677,0.47096,3441.9,3441.5,0.47101]
[1762545558887,0.141,3441.5,3441.4,0.47744408]
[1762545559486,0.141,3441.5,3441.4,0.72114408]
[1762545560381,0.141,3442.0,3441.8,0.47097]
[1762545560691,0.71346,3441.9,3441.8,0.47097]
[1762545560887,0.2425,3441.9,3441.8,0.47097]
[1762545561088,0.3835,3442.5,3442.4,0.47089]
[1762545561290,0.141,3442.5,3441.5,0.1136]
[1762545561591,0.2425,3442.4,3442.3,0.4709]
[1762545563288,0.71339,3442.4,3442.3,0.4709]
[1762545566283,0.2425,3442.4,3442.3,0.4709]
[1762545566489,0.85408,3442.5,3442.4,0.47089]
[1762545566691,1.54479692,3442.5,3442.4,0.47089]
[1762545567984,0.00251827,3443.0,3442.9,0.69712]
[1762545568185,0.47068,3443.9,3443.8,0.4707]
[1762545568386,0.2422,3443.6,3443.5,0.47510135]
[1762545568590,0.93291985,3443.8,3443.7,0.47071]
[1762545568992,1.40361985,3443.8,3443.7,0.47071]
[1762545569193,1.40635831,3443.8,3443.7,0.47071]
[1762545569382,0.69345831,3443.8,3443.7,0.47071]
[1762545569588,0.00273846,3443.8,3443.7,0.47071]
[1762545570086,0.00273846,3443.8,3443.7,0.69701]
[1762545571090,0.00273846,3443.8,3443.5,0.11796135]
[1762545571091,0.1402,3444.5,3443.5,0.11796135]
[1762545571388,0.1402,3444.5,3443.9,0.47068]
[1762545571592,0.3824,3444.0,3443.9,0.47068]
[1762545572099,0.38473913,3444.0,3443.9,0.47376556]
[1762545574296,0.00233913,3444.0,3443.9,0.70006556]
[1762545574684,0.14253913,3444.0,3443.9,0.70006556]
[1762545575195,0.61320913,3444.0,3443.9,0.47376556]
[1762545575396,0.85540913,3444.0,3443.9,0.47376556]
[1762545575593,0.38473913,3444.0,3443.9,0.47376556]
[1762545576796,0.85540913,3444.0,3443.9,0.47376556]
[1762545577091,0.38473913,3444.0,3443.9,0.47376556]
[1762545578292,0.85540913,3444.0,3443.9,0.47376556]
[1762545578486,0.85540913,3444.0,3443.9,0.00308556]
[1762545579493,0.85540913,3444.0,3443.9,0.47376556]
[1762545582303,0.38473913,3444.0,3443.9,0.47376556]
[1762545582599,0.85540913,3444.0,3443.9,0.47376556]
[1762545582795,0.85540913,3444.0,3443.9,0.00308556]
[1762545584693,0.85540913,3444.0,3443.9,0.47376556]
[1762545586798,0.38473913,3444.0,3443.9,0.47376556]
[1762545586998,0.14253913,3444.0,3443.9,0.71026556]
[1762545590907,1.5296565,3444.0,3443.9,0.00308556]
[1762545591601,1.5296565,3444.0,3443.9,0.47376556]
[1762545594601,0.6932865,3444.0,3443.9,0.71026556]
[1762545594799,0.36343913,3444.0,3443.9,0.71026556]
[1762545596209,1.0543865,3444.0,3443.9,0.47376556]
[1762545596512,0.83410913,3444.0,3443.9,0.47376556]
[1762545596705,1.5250565,3444.0,3443.9,0.47376556]
[1762545597609,1.62986568,3444.0,3443.9,0.47376556]
[1762545598310,1.5250565,3444.0,3443.9,0.47376556]
[1762545599298,1.0543865,3444.0,3443.9,0.47376556]
[1762545599603,1.5250565,3444.0,3443.9,0.47376556]
[1762545600203,1.5250565,3444.0,3443.9,0.00308556]
[1762545600409,1.62988938,3444.0,3443.9,0.00308556]
[1762545600602,1.5250565,3444.0,3443.9,0.00308556]
[1762545600813,1.62988654,3444.0,3443.9,0.00308556]
[1762545601014,2.67497014,3444.0,3443.9,0.00308556]
[1762545601306,1.97880014,3444.0,3443.9,0.00308556]
[1762545601506,1.17831654,3444.0,3443.9,0.47376556]
[1762545601716,0.6932865,3444.0,3443.9,0.71506556]
[1762545603206,0.00233913,3444.0,3443.9,0.71506556]
[1762545603402,1.0799865,3444.0,3443.9,0.47376556]
[1762545603608,1.0799865,3444.0,3443.9,0.71506556]
[1762545603909,0.6932865,3444.0,3443.9,0.71506556]
[1762545604107,1.0799865,3444.0,3443.9,0.47376556]
[1762545604310,1.5506565,3444.0,3443.9,0.00308556]
[1762545604717,0.2446,3443.2,3443.1,0.47078]
[1762545605010,0.2446,3441.8,3441.4,2.0555298]
[1762545605310,0.1421,3442.0,3441.0,0.1136]
[1762545605505,0.69094737,3442.3,3442.1,0.47092]
[1762545605706,0.14646135,3442.5,3442.3,0.4709]
[1762545605914,0.2446,3442.3,3442.2,0.47092]
[1762545606414,0.14646135,3442.5,3442.4,0.71219]
[1762545606615,0.00436135,3442.5,3442.4,0.71219]
[1762545606811,0.39106135,3442.5,3442.4,0.47089]
[1762545608111,0.14646135,3442.5,3442.4,0.71219]
[1762545609014,0.00436135,3442.5,3442.4,0.71219]
[1762545609514,0.14646135,3442.5,3442.4,0.71219]
[1762545610021,0.39106135,3442.5,3442.4,0.47089]
[1762545610220,0.00436135,3442.5,3442.4,0.71219]
[1762545610717,1.35e-06,3442.5,3442.4,0.71219]
[1762545611020,1.04520636,3443.6,3442.4,0.71219]